{"text_format":"1","workbook":"xlsx","n_sheets":3,"sheets":["Annex 4 Seguiment activitat","LLEGENDES ","DESPL."],"not_rendered":{"charts":0,"images":1,"macros":1,"external_links":0,"defined_names":3,"comments":1,"pivot_tables":0},"unopened":[],"bounds":{"document_bytes":16777216,"sheet_cells":100000,"rows_first":2000,"rows_last":500,"rows_between":2000,"halvings":0,"cell_chars":16384,"cell_head_chars":4096},"cells_cut":0,"cells_raw":0,"read":"whole","date_system":"1900"}

{"sheet":"Annex 4 Seguiment activitat","index":0,"n_rows":39,"n_cols":22,"rows_kept":39,"cut":false,"hidden":false,"merged":[[34,10,34,21],[35,10,35,21],[38,12,38,14],[0,1,0,9],[5,1,5,5],[2,1,2,2],[2,3,2,4],[3,1,3,2],[3,3,3,4],[4,1,4,2],[4,3,4,4]]}
[null,"Relació classificada de totes les despeses realitzades en els conceptes subvencionables"]
[]
[null,"Persona física/jurídica beneficiària:         "]
[null,"NIF entitat:"]
[null,"Codi de subvenció:"]
[]
[]
["núm. d'ordre","NOM DE L'INFANT","COGNOMS DE L'INFANT","SEXE DE L'INFANT","DATA DE NAIXEMENT","Nº IDALU\n(enllaç de consulta al full LLEGENDES)","CERTIFICAT DE DISCAPACITAT\n(Sí / No)","GRAU DISCAPACITAT\n(percentatge reconegut)","TIPOLOGIA DISCAPACITAT","INFORME XARXA PÚBLICA\n(Sí / No)","NOM ESCOLA/INSTITUT/EBM D'ESCOLARITZACIÓ DE L'INFANT","TIPUS DE SUPORT INTENSIU EN L'ESCOLARITZACIÓ","BAREM MOBILITAT REDUÏDA\n(Sí / No)","BAREM TERCERA PERSONA\n(Sí / No)","VALORACIÓ DEPENDÈNCIA","ENTITAT","NIF ENTITAT","NOM ACTIVITAT","CODI ACTIVITAT","MÒDUL ACTIVITAT\n(A / B / C)","NOMBRE DE TORNS QUE FARÀ L'INFANT EN AQUESTA ACTIVITAT","NOMBRE DE DIES DE COLÒNIES QUE FARÀ L'INFANT"]
[]
[{"$f":"IF(B10<>\"\",MAX($A$9:A9)+1,\"\")","v":""}]
[{"$f":"IF(B11<>\"\",MAX($A$9:A10)+1,\"\")","v":""}]
[{"$f":"IF(B12<>\"\",MAX($A$9:A11)+1,\"\")","v":""}]
[{"$f":"IF(B13<>\"\",MAX($A$9:A12)+1,\"\")","v":""}]
[{"$f":"IF(B14<>\"\",MAX($A$9:A13)+1,\"\")","v":""}]
[{"$f":"IF(B15<>\"\",MAX($A$9:A14)+1,\"\")","v":""}]
[{"$f":"IF(B16<>\"\",MAX($A$9:A15)+1,\"\")","v":""}]
[{"$f":"IF(B17<>\"\",MAX($A$9:A16)+1,\"\")","v":""}]
[{"$f":"IF(B18<>\"\",MAX($A$9:A17)+1,\"\")","v":""}]
[{"$f":"IF(B19<>\"\",MAX($A$9:A18)+1,\"\")","v":""}]
[{"$f":"IF(B20<>\"\",MAX($A$9:A19)+1,\"\")","v":""}]
[{"$f":"IF(B21<>\"\",MAX($A$9:A20)+1,\"\")","v":""}]
[{"$f":"IF(B22<>\"\",MAX($A$9:A21)+1,\"\")","v":""}]
[{"$f":"IF(B23<>\"\",MAX($A$9:A22)+1,\"\")","v":""}]
[{"$f":"IF(B24<>\"\",MAX($A$9:A23)+1,\"\")","v":""}]
[{"$f":"IF(B25<>\"\",MAX($A$9:A24)+1,\"\")","v":""}]
[{"$f":"IF(B26<>\"\",MAX($A$9:A25)+1,\"\")","v":""}]
[{"$f":"IF(B27<>\"\",MAX($A$9:A26)+1,\"\")","v":""}]
[{"$f":"IF(B28<>\"\",MAX($A$9:A27)+1,\"\")","v":""}]
[{"$f":"IF(B29<>\"\",MAX($A$9:A28)+1,\"\")","v":""}]
[{"$f":"IF(B30<>\"\",MAX($A$9:A29)+1,\"\")","v":""}]
[{"$f":"IF(B31<>\"\",MAX($A$9:A30)+1,\"\")","v":""}]
[{"$f":"IF(B32<>\"\",MAX($A$9:A31)+1,\"\")","v":""}]
[{"$f":"IF(B33<>\"\",MAX($A$9:A32)+1,\"\")","v":""}]
[]
[null,null,null,null,null,null,null,null,null,null,"El Sr./Sra. (indicar el nom i cognoms de la persona representant que signa la justificació)  amb DNI/NIE (indicar el núm. DNI) en qualitat de persona física beneficiària o representant legal de la persona jurídica beneficiària (indicar nom i cognoms) amb NIF (indicar núm . NIF)."]
[null,null,null,null,null,null,null,null,null,null,"CERTIFICA que l'Entitat custodiarà la documentació de suport que acredita la condició d'usuaris de les persones consignades en aquest full; que aquesta documentació es troba a disposició de l'Ajuntament de Barcelona o dels altres ens municipals en els arxius d'aquesta Entitat, durant un període mínim de 4 anys a comptar des de la data de presentació de la present justificació."]
[]
[]
[null,null,null,null,null,null,null,null,null,null,null,"Població i data:  ",null,null,null,"Signat digitalment"]

{"sheet":"LLEGENDES ","index":1,"n_rows":25,"n_cols":3,"rows_kept":25,"cut":false,"hidden":false,"merged":[[2,1,2,2]]}
[]
[]
[null,"LLEGENDA SEGUIMENT DE L'ACTIVITAT"]
[null,"NOM DE L'INFANT","Nom "]
[null,"COGNOMS DE L'INFANT","Primer i segon cognom"]
[null,"SEXE DE L'INFANT","Home / Dona / Altres"]
[null,"DATA DE NAIXEMENT","Data de naixement"]
[null,"Nº IDALU","Número identificació de l'alumne en el Registre d'Alumnes del Departament d'Educació.\nhttps://educacio.gencat.cat/ca/tramits/tramits-temes/identificador-alumne"]
[null,"CERTIFICAT DE DISCAPACITAT","Disposa de certificat de discapacitat? Sí /No"]
[null,"DISCAPACITAT","Si té o no té reconeguda alguna discapacitat."]
[null,"GRAU DISCAPACITAT","Grau en % reconegut de la discapacitat."]
[null,"TIPOLOGIA DISCAPACITAT","Categories determinades per la Direcció General de Protecció Social: Física motòrica, física no motòrica, física-intel·lectual, trastorn mental, intel·lectual, visual i auditiva.\nCategories addcionals IMPD: Retard generalalitzat del desenvolupament, Trastorn de l'Especter Autista (TEA)."]
[null,"INFORME XARXA PÚBLICA","Infants menors de 6 anys sense grau de discapacitat reconegut que presenta informe de la Xarxa Pública de Salut, Drets Socials o Educació que indiqui la necessitat de suport intensiu. "]
[null,"NOM ESCOLA/INSTITUT/EBM D'ESCOLARITZACIÓ DE L'INFANT","Nom del centre educatiu al que ha assitit en el curs 23-24 o assistirà en el curs 24-25."]
[null,"TIPUS DE SUPORT INTENSIU EN L'ESCOLARITZACIÓ","SIEI, SIAL, AIS, ESCOLA ESPECIAL, SIE BRESSOL, RESERVA NESE A."]
[null,"BAREM MOBILITAT REDUÏDA","Si té o no té reconegut el barem de mobilitat reduida. Aquesta informació està present en la targeta acreditativa de la discapacitat."]
[null,"BAREM TERCERA PERSONA","Si té o no reconeguda la necessitat de concurs de 3a Persona. Aquesta informació està present en la targeta acreditativa de la discapacitat."]
[null,"VALORACIÓ DEPENDÈNCIA","Si te valoració de la Llei de la Dependència i quin grau."]
[null,"ENTITAT","Nom de l'entitat."]
[null,"NIF ENTITAT","NIF de l'entitat"]
[null,"NOM ACTIVITAT","Nom de l'activitat; Per exemple Casal Escola Pere Barber"]
[null,"CODI ACTIVITAT","Codi de l'habilitació a la CVE."]
[null,"MÒDUL ACTIVITAT","Activitats de matí (A), activitats de tot el dia, dinar inclòs (B), colònies (C)."]
[null,"NOMBRE DE TORNS QUE FARÀ L'INFANT EN AQUESTA ACTIVITAT","Cada infant pot fer un màxim de 4 torns de casal durant la CVE."]
[null,"NOMBRE DE DIES DE COLÒNIES QUE FARÀ L'INFANT","Cada infant pot fer un màxim de 14 dies de colònies durant la CVE."]

{"sheet":"DESPL.","index":2,"n_rows":42,"n_cols":1,"rows_kept":42,"cut":false,"hidden":true,"merged":[]}
[]
["Home"]
["Dona"]
["Altres"]
[]
["SIEI"]
["SIAL"]
["AIS"]
["ESCOLA ESPECIAL"]
["SEI BRESSOL"]
["RESERVA NESE A"]
[]
[]
["SÍ"]
["NO"]
[]
[]
[1]
[2]
[3]
[4]
[]
[]
[]
["FÍSICA MOTÒRICA"]
["FÍSICA NO MOTÒRICA"]
["FÍSICA-INTEL·LECTUAL"]
["TRASTORN MENTAL"]
["INTEL·LECTUAL"]
["VISUAL"]
["AUDITIVA"]
["RETARD GEN. DESENV."]
["TEA"]
[]
["A"]
["B"]
["C"]
[]
["GRAU I"]
["GRAU II"]
["GRAU III"]
["NO"]